bitfinex/quotes_BTCUSD_20241124
["timestamp","ask_amount","ask_price","bid_price","bid_amount"]
[1732450444649,0.1234582,97270.0,97269.0,0.25644114]
[1732450445618,0.1234582,97270.0,97269.0,0.2548838]
[1732450446291,0.1234582,97270.0,97269.0,0.25644114]
[1732450450270,0.1234582,97270.0,97269.0,0.2548838]
[1732450452205,0.1234582,97270.0,97269.0,0.43934449]
[1732450452442,0.1234582,97270.0,97269.0,0.2548838]
[1732450453111,0.1234582,97270.0,97269.0,0.43934449]
[1732450453346,0.1234582,97270.0,97269.0,0.28835175]
[1732450453581,0.0458,97268.0,97266.0,0.09223631]
[1732450453814,0.0008582,97270.0,97265.0,0.09221467]
[1732450453815,0.0458,97266.0,97265.0,0.09221467]
[1732450454078,0.0458,97266.0,97264.0,0.09221467]
[1732450454079,0.10201427,97266.0,97264.0,0.09221467]
[1732450454309,0.10201427,97265.0,97263.0,0.09221467]
[1732450454568,0.1258,97264.0,97262.0,0.032699]
[1732450454796,0.10201427,97265.0,97262.0,0.182699]
[1732450455017,0.1258,97263.0,97262.0,0.032699]
[1732450455516,0.1258,97263.0,97262.0,0.063543]
[1732450460596,0.1258,97263.0,97262.0,0.213543]
[1732450461561,0.1258,97263.0,97262.0,0.063543]
[1732450468917,0.1246,97263.0,97262.0,0.063543]
[1732450469144,0.1246,97263.0,97262.0,0.06457109]
[1732450469397,0.0777,97269.0,97268.0,0.06509834]
[1732450469820,0.0777,97269.0,97268.0,0.20318872]
[1732450470048,0.0777,97269.0,97268.0,0.213541]
[1732450470289,0.0777,97269.0,97268.0,0.3976661]
[1732450470519,0.0777,97269.0,97268.0,0.39922344]
[1732450470753,0.0777,97269.0,97268.0,0.21509834]
[1732450470979,0.0008582,97270.0,97269.0,0.41325181]
[1732450471262,0.0008582,97270.0,97269.0,0.21509834]
[1732450471483,0.0008582,97270.0,97269.0,0.41480915]
[1732450471740,0.0008582,97270.0,97269.0,0.64494304]
[1732450472425,0.0008582,97270.0,97269.0,0.41480915]
[1732450481098,0.0817582,97270.0,97269.0,0.41325181]
[1732450481974,0.0817582,97270.0,97269.0,0.41480915]
[1732450485214,0.049,97273.0,97272.0,0.38055181]
[1732450485871,0.049,97273.0,97272.0,0.38210915]
[1732450486082,0.049,97273.0,97272.0,0.38055181]
[1732450486314,0.049,97273.0,97272.0,0.23055181]
[1732450486533,0.049,97273.0,97272.0,0.030841]
[1732450486779,0.049,97273.0,97272.0,0.38055181]
[1732450487243,0.049,97273.0,97272.0,0.38210915]
[1732450487820,0.049,97273.0,97272.0,0.23210915]
[1732450488011,0.1296,97273.0,97272.0,0.38210915]
[1732450489098,0.1296,97273.0,97272.0,0.23210915]
[1732450489462,0.1296,97273.0,97272.0,0.21354]
[1732450490571,0.1296,97273.0,97272.0,0.06354]
[1732450495422,0.1296,97273.0,97272.0,0.21354]
[1732450496476,0.1296,97273.0,97272.0,0.06354]
[1732450497149,0.1296,97273.0,97272.0,0.0652562]
[1732450497366,0.1304581,97273.0,97272.0,0.0652562]
[1732450500421,0.1304581,97273.0,97272.0,0.2152562]
[1732450502182,0.1304581,97273.0,97272.0,0.30733801]
[1732450502601,0.1304581,97273.0,97272.0,0.20337892]
[1732450502814,0.23247237,97273.0,97272.0,0.0017162]
[1732450504792,0.33527537,97273.0,97272.0,0.0017162]
[1732450505068,0.33556456,97273.0,97272.0,0.0017162]
[1732450505281,0.33600722,97273.0,97272.0,0.0017162]
[1732450505498,0.33600722,97273.0,97263.0,0.0017162]
[1732450505499,0.23064385,97264.0,97263.0,0.0017162]
[1732450505732,1.47518861,97264.0,97263.0,0.0017162]
[1732450505964,1.78359861,97264.0,97263.0,0.0017162]
[1732450506400,0.10355085,97258.0,97257.0,0.0017164]
[1732450506628,0.64210313,97258.0,97257.0,0.0017164]
[1732450506854,0.64107512,97258.0,97257.0,0.0017164]
[1732450507306,0.64107512,97258.0,97256.0,0.0017172]
[1732450507307,0.02373185,97257.0,97256.0,0.0017172]
[1732450507524,0.1271,97241.0,97240.0,0.0017172]
[1732450507706,1.35414315,97241.0,97240.0,0.0017172]
[1732450508197,1.45698015,97241.0,97240.0,0.0017172]
[1732450511042,1.45726934,97241.0,97240.0,0.0017172]
[1732450511488,1.457712,97241.0,97240.0,0.0017172]
[1732450511901,1.45726934,97241.0,97240.0,0.0017172]
[1732450512559,1.35443234,97241.0,97240.0,0.0017172]
[1732450512765,1.45726934,97241.0,97240.0,0.0017172]
[1732450514297,1.457712,97241.0,97240.0,0.0017172]
[1732450514508,1.45726934,97241.0,97240.0,0.0017172]
[1732450515167,1.35443234,97241.0,97240.0,0.0017172]
[1732450515579,1.45726934,97241.0,97240.0,0.0017172]
[1732450517335,1.457712,97241.0,97240.0,0.0017172]
[1732450523052,1.49942329,97241.0,97240.0,0.0017172]
[1732450524311,1.52242329,97241.0,97240.0,0.0017172]
[1732450525647,1.68972429,97241.0,97240.0,0.0017172]
[1732450525865,0.23114419,97224.0,97223.0,0.0017162]
[1732450526077,0.65112273,97224.0,97223.0,0.0017162]
[1732450526494,0.65068007,97224.0,97223.0,0.0017162]
[1732450529030,0.65112273,97224.0,97223.0,0.0017162]
[1732450529267,0.65068007,97224.0,97223.0,0.0017162]
[1732450529918,0.65112273,97224.0,97223.0,0.0017162]
[1732450530128,0.65068007,97224.0,97223.0,0.0017162]
[1732450533095,0.65112273,97224.0,97223.0,0.0017162]
[1732450533315,0.65068007,97224.0,97223.0,0.0017162]
[1732450536591,0.65112273,97224.0,97223.0,0.0017162]
[1732450536813,0.65068007,97224.0,97223.0,0.0017162]
[1732450537030,0.65112273,97224.0,97223.0,0.0017162]
[1732450537707,0.67412273,97224.0,97223.0,0.0017162]
[1732450538391,0.87987075,97224.0,97223.0,0.0017162]
[1732450538625,0.9164884,97224.0,97223.0,0.0017162]
[1732450538844,0.56895352,97223.0,97222.0,0.001716]
[1732450539056,1.35507779,97223.0,97222.0,0.001716]
[1732450540424,1.38693821,97223.0,97222.0,0.001716]
[1732450540862,1.31187354,97223.0,97222.0,0.001716]
[1732450542763,1.14457254,97223.0,97222.0,0.001716]
[1732450543001,0.94412988,97223.0,97222.0,0.001716]
[1732450543459,0.92157254,97223.0,97222.0,0.001716]
[1732450543919,0.92112988,97223.0,97222.0,0.001716]
[1732450544404,0.88926946,97223.0,97222.0,0.001716]
[1732450544868,0.88971212,97223.0,97222.0,0.001716]
[1732450546467,0.90995104,97223.0,97222.0,0.001716]
[1732450546911,0.91024023,97223.0,97222.0,0.001716]
[1732450547587,0.91068289,97223.0,97222.0,0.001716]
[1732450548505,1.13286185,97223.0,97222.0,0.001716]
[1732450553282,1.33286185,97223.0,97222.0,0.001716]
[1732450553537,1.37130887,97223.0,97222.0,0.001716]
[1732450554013,1.37130887,97223.0,97218.0,0.001716]
[1732450554014,0.49389285,97219.0,97218.0,0.001716]
[1732450554232,1.98903161,97219.0,97218.0,0.001716]
[1732450554492,2.17836314,97219.0,97218.0,0.001716]
[1732450554713,2.27011126,97219.0,97218.0,0.001716]
[1732450555466,2.17836314,97219.0,97218.0,0.001716]
[1732450556858,2.27007313,97219.0,97218.0,0.001716]
[1732450557383,2.17836314,97219.0,97218.0,0.001716]
[1732450558573,2.27003484,97219.0,97218.0,0.001716]
[1732450558795,2.2700414,97219.0,97218.0,0.001716]
[1732450559051,2.17836314,97219.0,97218.0,0.001716]
[1732450559292,2.27004113,97219.0,97218.0,0.001716]
[1732450559518,2.17836314,97219.0,97218.0,0.001716]
[1732450559764,0.19103285,97204.0,97203.0,0.0017156]
[1732450559995,2.04979039,97204.0,97203.0,0.0017156]
[1732450560261,2.28809391,97204.0,97203.0,0.0017156]
[1732450560498,2.31994882,97204.0,97203.0,0.0017156]
[1732450562425,2.24399964,97204.0,97203.0,0.0017156]
[1732450563385,2.28572354,97204.0,97203.0,0.0017156]
[1732450563629,2.25386863,97204.0,97203.0,0.0017156]
[1732450564856,2.28571088,97204.0,97203.0,0.0017156]
[1732450565086,1.58965702,97204.0,97203.0,0.0017156]
[1732450565548,0.90935602,97204.0,97203.0,0.0017156]
[1732450565792,0.70906683,97204.0,97203.0,0.0017156]
[1732450566018,0.41071346,97204.0,97203.0,0.0017156]
[1732450567750,0.66223212,97204.0,97203.0,0.0017156]
[1732450567991,0.66178946,97204.0,97203.0,0.0017156]
[1732450569215,0.82909046,97204.0,97203.0,0.0017156]
[1732450569437,0.86615077,97204.0,97203.0,0.0017156]
[1732450569899,0.89800032,97204.0,97203.0,0.0017156]
[1732450570390,0.93430699,97204.0,97203.0,0.0017156]
[1732450571363,1.13430699,97204.0,97203.0,0.0017156]
[1732450572312,1.15451735,97204.0,97203.0,0.0017156]
[1732450572844,1.30451735,97204.0,97203.0,0.0017156]
[1732450574780,0.41911685,97196.0,97195.0,0.0017156]
[1732450575011,0.93410721,97196.0,97195.0,0.0017156]
[1732450577367,0.97483576,97196.0,97195.0,0.0017156]
[1732450577613,0.93815868,97196.0,97195.0,0.0017156]
[1732450577850,0.97483576,97196.0,97195.0,0.0017156]
[1732450578340,0.90211922,97196.0,97195.0,0.0017156]
[1732450578563,0.73481822,97196.0,97195.0,0.0017156]
[1732450578820,0.55432601,97196.0,97195.0,0.0017156]
[1732450579068,0.51330827,97196.0,97195.0,0.0017156]
[1732450579509,0.51359746,97196.0,97195.0,0.0017156]
[1732450580521,0.53659746,97196.0,97195.0,0.0017156]
[1732450580756,0.53704012,97196.0,97195.0,0.0017156]
[1732450580956,0.82954112,97196.0,97195.0,0.0017156]
[1732450581374,0.8662182,97196.0,97195.0,0.0017156]
[1732450581624,0.89807698,97196.0,97195.0,0.0017156]
[1732450582093,0.88149794,97196.0,97195.0,0.0017156]
[1732450582304,0.91817502,97196.0,97195.0,0.0017156]
[1732450582944,0.88149794,97196.0,97195.0,0.0017156]
[1732450583621,0.68233816,97196.0,97195.0,0.0017156]
[1732450583857,0.6028955,97196.0,97195.0,0.0017156]
[1732450584089,0.5566955,97196.0,97195.0,0.0017156]
[1732450584340,0.55713816,97196.0,97195.0,0.0017156]
[1732450584552,0.5566955,97196.0,97195.0,0.0017156]
[1732450585632,0.55713816,97196.0,97195.0,0.0017156]
[1732450585859,0.32850804,97196.0,97195.0,0.1434796]
[1732450586084,0.30841,97196.0,97195.0,0.1434796]
[1732450586797,0.00028919,97221.0,97206.0,0.063561]
[1732450587484,0.0017164,97223.0,97206.0,0.14434694]
[1732450587708,0.0017164,97223.0,97222.0,0.063556]
[1732450587924,0.10373067,97223.0,97222.0,0.063556]
[1732450588865,0.0017164,97223.0,97222.0,0.063556]
[1732450591488,0.0017164,97223.0,97222.0,0.063556]
[1732450593971,0.0017164,97223.0,97222.0,0.1596323]
[1732450595526,0.0017164,97223.0,97222.0,0.31118964]
[1732450597968,0.0017164,97223.0,97222.0,0.3096323]
[1732450599975,0.00158773,97223.0,97222.0,0.3096323]
[1732450601980,0.103602,97223.0,97222.0,0.1269333]
[1732450602200,0.103602,97223.0,97222.0,0.0960763]
[1732450602417,0.103602,97223.0,97221.0,0.030857]
[1732450602642,0.10201427,97222.0,97221.0,0.030857]
[1732450602856,0.10201427,97222.0,97221.0,0.12596883]
[1732450603071,0.10201427,97222.0,97221.0,0.130156]
[1732450603477,0.10201427,97222.0,97221.0,0.099299]
[1732450603948,0.10201427,97222.0,97221.0,0.130156]
[1732450605743,0.10201427,97222.0,97221.0,0.099299]
[1732450606205,0.10201427,97222.0,97218.0,0.032699]
[1732450606206,0.10201427,97222.0,97219.0,0.09921231]
[1732450606639,0.102859,97220.0,97212.0,0.15]
[1732450606857,0.10201427,97219.0,97212.0,0.15]
[1732450607074,0.0775,97218.0,97209.0,0.032699]
[1732450607320,0.41060427,97217.0,97209.0,0.032699]
[1732450607545,0.51346727,97217.0,97209.0,0.032699]
[1732450607978,0.41060427,97217.0,97209.0,0.032699]
[1732450608198,0.41060427,97217.0,97209.0,0.06356]
[1732450608408,0.00102801,97216.0,97209.0,0.032699]
[1732450608622,0.41060427,97215.0,97209.0,0.06356]
[1732450608825,0.00102801,97214.0,97209.0,0.032699]
[1732450609050,0.41060427,97213.0,97209.0,0.032699]
[1732450609260,0.00102801,97212.0,97209.0,0.032699]
[1732450609476,0.10201427,97211.0,97209.0,0.032699]
[1732450609689,0.10201427,97211.0,97207.0,0.0008584]
[1732450609690,0.00028919,97208.0,97207.0,0.0008584]
[1732450609938,0.20620347,97208.0,97207.0,0.09470571]
[1732450610149,0.51479347,97208.0,97207.0,0.09470571]
[1732450610357,0.51376546,97208.0,97207.0,0.09470571]
[1732450616481,0.61796546,97208.0,97207.0,0.09470571]
[1732450616698,0.66062684,97208.0,97207.0,0.09470571]
[1732450617710,0.66062684,97208.0,97195.0,0.0017156]
[1732450617711,0.20737319,97196.0,97195.0,0.0017156]
[1732450617982,0.20737319,97196.0,97195.0,0.09513613]
[1732450617983,0.31041547,97196.0,97195.0,0.09513613]
[1732450618203,0.61797746,97196.0,97195.0,0.09513613]
[1732450619978,0.66507746,97196.0,97195.0,0.09513613]
[1732450620441,0.66552012,97196.0,97195.0,0.09513613]
[1732450621602,0.66507746,97196.0,97195.0,0.09513613]
[1732450622084,0.66552012,97196.0,97195.0,0.09513613]
[1732450622789,0.66507746,97196.0,97195.0,0.09513613]
[1732450623245,0.41089346,97196.0,97195.0,0.12783513]
[1732450623463,0.51377746,97196.0,97195.0,0.09513613]
[1732450623926,0.41089346,97196.0,97195.0,0.09513613]
[1732450625721,0.41089346,97196.0,97195.0,0.12600113]
[1732450626176,0.41089346,97196.0,97195.0,0.09513613]
[1732450627860,0.41089346,97196.0,97195.0,0.12783513]
[1732450628099,0.41060427,97196.0,97195.0,0.15870013]
[1732450630940,0.41060427,97196.0,97195.0,0.09513613]
[1732450631161,0.51348827,97196.0,97195.0,0.09513613]
[1732450631394,0.51377746,97196.0,97195.0,0.09513613]
[1732450631623,0.53677746,97196.0,97195.0,0.09513613]
[1732450634168,0.53722012,97196.0,97195.0,0.09513613]
[1732450634402,0.53677746,97196.0,97195.0,0.09513613]
[1732450635823,0.53677746,97196.0,97195.0,0.09473352]
[1732450637437,0.41089346,97196.0,97195.0,0.09473352]
[1732450637891,0.41089346,97196.0,97195.0,0.12559852]
[1732450638171,0.41060427,97196.0,97195.0,0.15985486]
[1732450638396,0.41060427,97196.0,97195.0,0.15829752]
[1732450639487,0.30859,97196.0,97195.0,0.15829752]
[1732450639731,0.0017168,97207.0,97206.0,0.063561]
[1732450639929,0.10373107,97207.0,97206.0,0.15946754]
[1732450641096,0.41235107,97207.0,97206.0,0.15946754]
[1732450643800,0.41235107,97207.0,97206.0,0.12860554]
[1732450644013,0.51522407,97207.0,97206.0,0.09590654]
[1732450644259,0.53822407,97207.0,97206.0,0.09590654]
[1732450644516,0.102875,97205.0,97191.0,0.03242334]
[1732450644735,0.205748,97206.0,97195.0,0.03401199]
[1732450644736,0.10288,97201.0,97195.0,0.03401199]
[1732450644985,0.41166228,97200.0,97198.0,0.032699]
[1732450645439,0.41166228,97200.0,97198.0,0.063563]
[1732450645664,0.41166228,97200.0,97198.0,0.032699]
[1732450646834,0.41166228,97200.0,97195.0,0.00131299]
[1732450647087,0.102884,97196.0,97195.0,0.00131299]
[1732450647335,0.51351827,97196.0,97195.0,0.00131299]
[1732450648482,0.51351827,97196.0,97195.0,0.1006719]
[1732450649184,0.41063427,97196.0,97195.0,0.1006719]
[1732450649419,0.51351827,97196.0,97195.0,0.1006719]
[1732450651056,0.53680746,97196.0,97195.0,0.1006719]
[1732450651302,0.61260746,97196.0,97195.0,0.1006719]
[1732450652435,0.61432446,97196.0,97195.0,0.1006719]
[1732450652653,0.66222446,97196.0,97195.0,0.1006719]
[1732450653554,0.69412609,97196.0,97195.0,0.1006719]
[1732450653780,0.73653225,97196.0,97195.0,0.1006719]
[1732450654480,0.73697491,97196.0,97195.0,0.1006719]
[1732450655439,0.73653225,97196.0,97195.0,0.1006719]
[1732450655896,0.73697491,97196.0,97195.0,0.1006719]
[1732450656157,0.73653225,97196.0,97195.0,0.1006719]
[1732450656380,0.70463062,97196.0,97195.0,0.1006719]
[1732450657120,0.70507328,97196.0,97195.0,0.1006719]
[1732450657354,0.87555021,97196.0,97195.0,0.1006719]
[1732450657579,0.87510755,97196.0,97195.0,0.1006719]
[1732450658713,0.72510755,97196.0,97195.0,0.1006719]
[1732450658963,0.4328282,97196.0,97195.0,0.1006719]
[1732450659191,0.53600139,97196.0,97195.0,0.1006719]
[1732450659418,0.53600139,97196.0,97195.0,0.16579324]
[1732450659419,0.41235127,97196.0,97195.0,0.16579324]
[1732450659873,0.41235127,97196.0,97195.0,0.1642359]
[1732450660554,0.41235127,97196.0,97195.0,0.16579324]
[1732450661276,0.41235127,97196.0,97195.0,0.15550524]
[1732450661538,0.310337,97196.0,97195.0,0.1539479]
[1732450661760,0.310337,97196.0,97195.0,0.15550524]
[1732450661982,0.310337,97196.0,97195.0,0.19573267]
[1732450662417,0.310337,97196.0,97195.0,0.28785405]
[1732450662635,0.310337,97196.0,97195.0,0.19573267]
[1732450663105,0.310337,97196.0,97195.0,0.19729001]
[1732450663312,0.310337,97196.0,97195.0,0.19573267]
[1732450664239,0.310337,97196.0,97195.0,0.28785405]
[1732450664457,0.310337,97196.0,97195.0,0.34573267]
[1732450664697,0.310337,97196.0,97195.0,0.48382216]
[1732450664924,0.310337,97196.0,97195.0,0.4853795]
[1732450666527,0.310337,97196.0,97195.0,0.48534286]
[1732450666760,0.310337,97196.0,97195.0,0.48534285]
[1732450667666,0.310337,97196.0,97195.0,0.34729001]
[1732450667922,0.310337,97196.0,97195.0,0.48534285]
[1732450668159,0.310337,97196.0,97195.0,0.68534285]
[1732450668592,0.310337,97196.0,97195.0,0.54729001]
[1732450669298,0.310337,97196.0,97195.0,0.62125082]
[1732450670484,0.310337,97196.0,97195.0,0.52923488]
[1732450670714,0.214337,97196.0,97195.0,0.6196737]
[1732450670932,0.111452,97196.0,97195.0,0.83295996]
[1732450671184,0.111452,97196.0,97195.0,1.1090408]
[1732450671478,0.0017168,97207.0,97206.0,0.45454115]
[1732450671702,0.0017168,97207.0,97206.0,1.03077756]
[1732450671913,0.0017168,97207.0,97206.0,0.80250759]
[1732450672143,0.0017168,97207.0,97206.0,1.03232722]
[1732450672577,0.0017168,97207.0,97206.0,0.80250759]
[1732450673524,0.0017168,97207.0,97206.0,0.98466116]
[1732450673752,0.0017168,97207.0,97206.0,1.02703218]
[1732450673972,0.0017168,97207.0,97206.0,0.741307]
[1732450674203,0.0017168,97207.0,97206.0,0.87909587]
[1732450674431,0.0017168,97207.0,97206.0,0.741307]
[1732450676385,0.0017168,97207.0,97206.0,0.73974966]
[1732450676680,0.0017168,97207.0,97206.0,0.741307]
[1732450677798,0.0017168,97207.0,97206.0,0.34159619]
[1732450678246,0.0247168,97207.0,97206.0,0.34159619]
[1732450678698,0.0247168,97207.0,97206.0,0.541307]
[1732450683141,0.0247168,97207.0,97206.0,0.34159619]
[1732450685211,0.0347168,97207.0,97206.0,0.30078251]
[1732450687029,0.0347168,97207.0,97206.0,0.28020851]
[1732450687261,0.18633107,97207.0,97206.0,0.28020851]
[1732450687914,0.18633107,97207.0,97206.0,0.30078251]
[1732450689815,0.18633107,97207.0,97206.0,0.28020851]
[1732450690035,0.18633107,97207.0,97206.0,0.15078251]
[1732450690479,0.13673107,97207.0,97206.0,0.15078251]
[1732450690705,0.0347168,97207.0,97206.0,0.15078251]
[1732450692608,0.0347168,97207.0,97206.0,0.30078251]
[1732450693069,0.03458811,97207.0,97206.0,0.30078251]
[1732450696207,0.01158811,97207.0,97206.0,0.50078251]
[1732450696422,0.01158811,97207.0,97206.0,0.70049332]
[1732450697096,0.01158811,97207.0,97206.0,0.79229592]
[1732450697303,0.01158811,97207.0,97206.0,0.70049332]
[1732450697761,0.01158811,97207.0,97206.0,0.838201]
[1732450698668,0.01158811,97207.0,97206.0,0.50049332]
[1732450699110,0.03458811,97207.0,97206.0,0.50049332]
[1732450699959,0.03458811,97207.0,97206.0,0.30078251]
[1732450700648,0.03458811,97207.0,97206.0,0.50049332]
[1732450701761,0.01158811,97207.0,97206.0,0.59317723]
[1732450701967,0.01158811,97207.0,97206.0,0.70135142]
[1732450702241,0.01158811,97207.0,97206.0,0.93086422]
[1732450702453,0.01158811,97207.0,97206.0,0.88522262]
[1732450702665,0.01158811,97207.0,97206.0,0.70135142]
[1732450702876,0.01158811,97207.0,97206.0,0.9312962]
[1732450703109,0.01158811,97207.0,97206.0,0.70135142]
[1732450705789,0.01158811,97207.0,97206.0,0.50135142]
[1732450707645,0.03458811,97207.0,97206.0,0.50135142]
[1732450707878,0.03458811,97207.0,97206.0,0.43986743]
[1732450707879,0.15438811,97207.0,97206.0,0.43986743]
[1732450708109,0.15438811,97207.0,97206.0,0.30164061]
[1732450708328,0.15438811,97207.0,97206.0,0.3937945]
[1732450708569,0.15438811,97207.0,97206.0,0.39223716]
[1732450708794,0.15438811,97207.0,97206.0,0.3937945]
[1732450709029,0.15438811,97207.0,97206.0,0.30164061]
[1732450709470,0.15438811,97207.0,97206.0,0.393803]
[1732450709676,0.15438811,97207.0,97206.0,0.30164061]
[1732450710598,0.14938811,97207.0,97206.0,0.30164061]
[1732450711550,0.14938811,97207.0,97206.0,0.28106661]
[1732450711771,0.14938811,97207.0,97206.0,0.30164061]
[1732450712463,0.14938811,97207.0,97206.0,0.28106661]
[1732450712909,0.25140238,97207.0,97206.0,0.27950927]
[1732450713190,0.25140238,97207.0,97206.0,0.30008327]
[1732450713433,0.25140238,97207.0,97206.0,0.27950927]
[1732450713665,0.25311858,97207.0,97206.0,0.30008327]
[1732450713913,0.25311858,97207.0,97206.0,0.30164061]
[1732450714376,0.25311858,97207.0,97206.0,0.30008327]
[1732450714832,0.25311858,97207.0,97206.0,0.30164061]
[1732450715559,0.24311858,97207.0,97206.0,0.27950927]
[1732450715788,0.23353047,97207.0,97206.0,0.28106661]
[1732450716013,0.23353047,97207.0,97206.0,0.30164061]
[1732450717416,0.23353047,97207.0,97206.0,0.30008327]
[1732450717855,0.25653047,97207.0,97206.0,0.30008327]
[1732450718085,0.25653047,97207.0,97206.0,0.30164061]
[1732450718306,0.25653047,97207.0,97206.0,0.30008327]
[1732450720867,0.25653047,97207.0,97206.0,0.30164061]
[1732450722547,0.25653047,97207.0,97206.0,0.30008327]
[1732450724179,0.25653047,97207.0,97206.0,0.30164061]
[1732450724641,0.25653047,97207.0,97206.0,0.30008327]
[1732450725319,0.25653047,97207.0,97206.0,0.30164061]
[1732450725546,0.25653047,97207.0,97206.0,0.27950927]
[1732450725998,0.56515047,97207.0,97206.0,0.30008327]
[1732450726482,0.56515047,97207.0,97206.0,0.15008327]
[1732450727425,0.56515047,97207.0,97206.0,0.12950927]
[1732450727426,0.66802347,97207.0,97206.0,0.12950927]
[1732450728099,0.56515047,97207.0,97206.0,0.12950927]
[1732450728568,0.56515047,97207.0,97206.0,0.15008327]
[1732450729296,0.56515047,97207.0,97206.0,0.12950927]
[1732450730663,0.56515047,97207.0,97206.0,0.15164061]
[1732450735217,0.54515047,97207.0,97206.0,0.15164061]
[1732450735681,0.54515047,97207.0,97206.0,0.15008327]
[1732450738801,0.54515047,97207.0,97206.0,0.12950927]
[1732450739043,0.54515047,97207.0,97206.0,0.15008327]
[1732450739738,0.54515047,97207.0,97206.0,0.12950927]
[1732450740854,0.54515047,97207.0,97206.0,0.09681027]
[1732450740855,0.64802347,97207.0,97206.0,0.09681027]
[1732450740857,0.64831266,97207.0,97206.0,0.09681027]
[1732450744058,0.64875532,97207.0,97206.0,0.09681027]
[1732450744274,0.64831266,97207.0,97206.0,0.09681027]
[1732450744732,0.64422336,97207.0,97206.0,0.09681027]
[1732450749349,0.64466602,97207.0,97206.0,0.09681027]
[1732450749610,0.64466602,97207.0,97196.0,0.0008582]
[1732450749611,0.10361485,97197.0,97196.0,0.0008582]
[1732450749861,0.92218874,97197.0,97196.0,0.0008582]
[1732450750079,0.92071807,97197.0,97196.0,0.09796537]
[1732450750324,0.92116073,97197.0,97196.0,0.09796537]
[1732450751873,0.92071807,97197.0,97196.0,0.09796537]
[1732450752111,0.92116073,97197.0,97196.0,0.09796537]
[1732450754412,0.96351898,97197.0,97196.0,0.09796537]
[1732450754845,0.96307632,97197.0,97196.0,0.09796537]
[1732450755527,0.96351898,97197.0,97196.0,0.09796537]
[1732450755759,0.96351898,97197.0,97164.0,0.10616944]
[1732450755760,0.00028919,97184.0,97164.0,0.10616944]
[1732450756001,0.023,97167.0,97155.0,0.020585]
[1732450756232,0.12592,97163.0,97161.0,0.04127353]
[1732450756483,0.023,97161.0,97160.0,0.00155734]
[1732450756710,0.023,97161.0,97160.0,0.11881438]
[1732450757827,0.023,97161.0,97160.0,0.26881438]
[1732450759658,0.023,97161.0,97160.0,0.26967248]
[1732450760115,0.023,97161.0,97160.0,0.24908848]
[1732450760343,0.20661427,97161.0,97160.0,0.09753114]
[1732450760557,0.20764228,97161.0,97160.0,0.09753114]
[1732450760797,0.31056328,97161.0,97160.0,0.09753114]
[1732450761008,0.51523427,97161.0,97160.0,0.09753114]
[1732450763109,0.61815527,97161.0,97160.0,0.09753114]
[1732450763814,0.51523427,97161.0,97160.0,0.09753114]
[1732450765371,0.33162,97161.0,97160.0,0.09753114]
[1732450765603,0.33162,97161.0,97160.0,0.11811514]
[1732450766301,0.33162,97161.0,97160.0,0.11967248]
[1732450766522,0.30862,97161.0,97160.0,0.26811514]
[1732450766765,0.30862,97161.0,97160.0,0.26967248]
[1732450770705,0.30862,97161.0,97160.0,0.56164198]
[1732450771167,0.30862,97161.0,97160.0,0.58574198]
[1732450771398,0.30862,97161.0,97160.0,0.49377248]
[1732450771636,0.30862,97161.0,97160.0,0.67769846]
[1732450771866,0.30862,97161.0,97160.0,0.49377248]
[1732450773334,0.30862,97161.0,97160.0,0.72367996]
[1732450774716,0.30862,97161.0,97160.0,0.69348329]
[1732450775873,0.30862,97161.0,97160.0,0.79549756]
[1732450776124,0.30862,97161.0,97160.0,0.87359756]
[1732450776831,0.30862,97161.0,97160.0,0.87559756]
[1732450778181,0.30862,97161.0,97160.0,1.15165842]
[1732450778392,0.30862,97161.0,97160.0,0.87559756]
[1732450778827,0.30862,97161.0,97160.0,0.87359756]
[1732450779271,0.30862,97161.0,97160.0,1.14969708]
[1732450779500,0.30862,97161.0,97160.0,0.87359756]
[1732450779968,0.30862,97161.0,97160.0,0.84949756]
[1732450780221,0.30862,97161.0,97160.0,0.46938329]
[1732450780885,0.30862,97161.0,97160.0,0.49984327]
[1732450781097,0.30862,97161.0,97160.0,0.26967248]
[1732450781314,0.30862,97161.0,97160.0,0.45381548]
[1732450781552,0.30862,97161.0,97160.0,0.26967248]
[1732450782484,0.30862,97161.0,97160.0,0.45384991]
[1732450783783,0.30362,97161.0,97160.0,0.26967248]
[1732450784031,0.30362,97161.0,97160.0,0.46782595]
[1732450784253,0.30362,97161.0,97160.0,0.26967248]
[1732450784541,0.30362,97161.0,97160.0,0.69968588]
[1732450784758,0.30362,97161.0,97160.0,0.46938329]
[1732450785603,0.30362,97161.0,97160.0,0.26967248]
[1732450785895,0.30362,97161.0,97160.0,0.50008137]
[1732450786126,0.30362,97161.0,97160.0,0.69979218]
[1732450786574,0.30362,97161.0,97160.0,0.69979936]
[1732450786784,0.30362,97161.0,97160.0,0.46938329]
[1732450787007,0.30362,97161.0,97160.0,0.69980076]
[1732450787222,0.30362,97161.0,97160.0,0.46938329]
[1732450787437,0.30362,97161.0,97160.0,0.46782595]
[1732450787662,0.30362,97161.0,97160.0,0.46938329]
[1732450788602,0.30362,97161.0,97160.0,0.66938329]
[1732450788838,0.30362,97161.0,97160.0,0.9457464]
[1732450789050,0.30362,97161.0,97160.0,0.66938329]
[1732450790835,0.30362,97161.0,97160.0,0.84949756]
[1732450795534,0.30362,97161.0,97160.0,0.84915756]
[1732450796032,0.283036,97161.0,97160.0,0.84915756]
[1732450796245,0.221284,97161.0,97160.0,0.85115756]
[1732450796667,0.118364,97161.0,97160.0,0.85115756]
[1732450797345,0.09778,97161.0,97160.0,0.87525756]
[1732450797559,0.015444,97161.0,97160.0,0.87525756]
[1732450798223,0.015444,97161.0,97160.0,0.87170022]
[1732450798460,0.015444,97161.0,97160.0,0.87525756]
[1732450800801,0.015444,97161.0,97160.0,0.85115756]
[1732450801275,0.015444,97161.0,97160.0,0.65115756]
[1732450801513,0.015444,97161.0,97160.0,1.1275402]
[1732450801739,0.015444,97161.0,97160.0,0.85115756]
[1732450802416,0.001717,97164.0,97160.0,0.85115756]
[1732450802633,0.001717,97164.0,97163.0,0.57385115]
[1732450802862,0.001717,97164.0,97163.0,0.77566315]
[1732450803097,0.001717,97164.0,97163.0,0.77366315]
[1732450803842,0.001717,97164.0,97163.0,0.67164888]
[1732450804061,0.001717,97164.0,97163.0,0.71319063]
[1732450811028,0.001717,97164.0,97163.0,0.66806063]
[1732450813830,0.126517,97164.0,97163.0,0.31347982]
[1732450814568,0.126517,97164.0,97163.0,0.54412464]
[1732450815509,0.126517,97164.0,97163.0,0.31347982]
[1732450819476,0.106517,97164.0,97163.0,0.45187915]
[1732450819940,0.106517,97164.0,97163.0,0.31347982]
[1732450821081,0.106517,97164.0,97163.0,0.45187915]
[1732450821333,0.129517,97164.0,97163.0,0.27193807]
[1732450822053,0.129517,97164.0,97163.0,0.36417887]